bitfinex-derivatives/quotes_ETHF0:USTF0_20250606
["timestamp","ask_amount","ask_price","bid_price","bid_amount"]
[1749241380526,1.92655768,2497.4,2497.3,0.80633974]
[1749241381823,3.21275768,2497.4,2497.3,0.80633974]
[1749241382722,3.21275768,2497.4,2497.3,0.00600974]
[1749241382928,6.42055768,2497.4,2497.3,0.00600974]
[1749241383128,6.42055768,2497.4,2497.3,0.80633974]
[1749241383129,3.21275768,2497.4,2497.3,0.80633974]
[1749241385025,3.28409119,2497.4,2497.3,0.80633974]
[1749241385828,3.28409119,2497.4,2497.3,0.80033]
[1749241386025,3.28409119,2497.4,2497.3,0.50606371]
[1749241386324,3.28409119,2497.4,2497.3,0.80033]
[1749241389920,2.48380119,2497.4,2497.3,0.80033]
[1749241390129,3.28409119,2497.4,2497.3,0.80033]
[1749241390427,2.48380119,2497.4,2497.3,0.80033]
[1749241391424,3.28409119,2497.4,2497.3,0.80033]
[1749241391626,2.48380119,2497.4,2497.3,0.80033]
[1749241392532,1.19760119,2497.4,2497.3,0.80033]
[1749241394133,1.99789119,2497.4,2497.3,0.80033]
[1749241394329,1.19760119,2497.4,2497.3,0.80033]
[1749241394931,1.19760119,2497.4,2497.3,4.00813]
[1749241395527,1.19760119,2497.4,2497.3,5.38383]
[1749241398335,1.19760119,2497.4,2497.3,4.00813]
[1749241401625,1.99789119,2497.4,2497.3,3.2078]
[1749241401834,0.80036,2497.2,2497.1,0.80637974]
[1749241402030,1.92662768,2497.2,2497.1,0.00600974]
[1749241402335,6.92662768,2497.2,2497.1,0.00600974]
[1749241402529,8.18762768,2497.2,2497.1,0.00600974]
[1749241404537,12.96662768,2497.2,2497.1,0.00033134]
[1749241407238,12.95935397,2497.2,2497.1,0.00033134]
[1749241408433,7.95935397,2497.2,2497.1,0.00033134]
[1749241409435,12.95935397,2497.2,2497.1,0.00033134]
[1749241409833,12.95935397,2497.2,2496.5,0.80056]
[1749241409834,0.80059,2496.6,2496.5,0.80056]
[1749241410035,0.80054,2496.7,2496.6,0.8005]
[1749241410230,0.80065,2496.4,2496.3,0.80065]
[1749241410433,1.91802283,2496.4,2496.3,0.80065]
[1749241410635,1.11737283,2496.4,2496.0,0.6603]
[1749241410837,0.80071,2496.2,2496.1,0.80668974]
[1749241411029,1.91808283,2496.2,2496.1,0.80668974]
[1749241411640,1.91808283,2496.2,2496.1,0.00600974]
[1749241411841,1.91808283,2496.2,2496.1,0.80671974]
[1749241412143,1.91808283,2496.2,2496.1,0.00600974]
[1749241412538,1.91722379,2496.2,2496.1,0.00600974]
[1749241412941,2.57172379,2496.2,2496.1,0.00600974]
[1749241413141,3.21712379,2496.2,2496.1,0.80671974]
[1749241414446,2.10061,2496.2,2496.1,0.00600974]
[1749241415141,6.42230795,2496.2,2496.1,0.00600974]
[1749241415347,0.80087,2495.7,2495.6,0.80084]
[1749241416043,0.6836,2495.8,2495.7,0.80084]
[1749241416441,3.8532,2496.2,2495.5,3.21380974]
[1749241416645,0.6836,2496.1,2496.0,0.80074]
[1749241420147,1.48431,2496.1,2496.0,0.80074]
[1749241421846,2.87051,2496.1,2496.0,0.80074]
[1749241422144,0.80087,2495.7,2495.6,0.80085]
[1749241422347,0.80087,2495.6,2495.5,3.21380974]
[1749241422537,1.46357,2495.6,2495.5,3.21380974]
[1749241422738,1.46357,2495.6,2495.5,4.01470974]
[1749241423241,1.46357,2495.6,2495.5,0.80690974]
[1749241423448,1.46357,2495.6,2495.5,0.00600974]
[1749241423649,2.77207,2495.6,2495.5,0.80690974]
[1749241424155,7.55307,2495.6,2495.5,0.00600974]
[1749241424441,2.00251,2495.2,2494.6,3.2078]
[1749241424647,0.80109,2495.0,2494.9,0.80107]
[1749241425439,3.8953,2495.1,2495.0,0.80106]
[1749241426653,0.6875,2495.1,2495.0,0.80106]
[1749241426849,1.48853,2495.1,2495.0,0.80106]
[1749241428752,0.80103,2495.1,2495.0,0.80106]
[1749241429153,0.80700974,2495.2,2495.1,0.80103]
[1749241429362,0.80106,2495.1,2495.0,0.80103]
[1749241429955,0.80106,2495.1,2494.8,3.28752]
[1749241429956,0.80702974,2495.2,2495.1,0.80103]
[1749241430756,0.00600974,2495.2,2495.1,0.80103]
[1749241436258,0.00600974,2495.2,2495.1,5.80103]
[1749241436458,6.88624,2495.8,2495.7,0.80084]
[1749241436657,7.99605825,2495.8,2495.7,0.80084]
[1749241437555,3.21705825,2495.8,2495.7,0.80084]
[1749241437757,1.10981825,2495.8,2495.7,0.80084]
[1749241437952,1.10981825,2495.8,2495.5,2.00223]
[1749241437953,0.80078,2495.9,2495.8,0.80081]
[1749241438256,1.91101332,2495.9,2495.8,0.80081]
[1749241439258,0.80088,2495.7,2495.6,0.80084]
[1749241439857,1.91246565,2495.7,2495.6,0.80084]
[1749241440058,0.80084,2495.7,2495.6,0.80084]
[1749241440557,1.91257867,2495.7,2495.6,0.80084]
[1749241441755,1.91257867,2495.7,2495.4,0.80089]
[1749241441756,0.80094,2495.5,2495.4,0.80089]
[1749241442166,0.80089,2495.6,2495.5,0.80087]
[1749241442462,1.91352944,2495.6,2495.5,0.80087]
[1749241443259,0.691,2495.8,2495.3,3.2078]
[1749241443562,0.691,2495.8,2495.7,0.80084]
[1749241443754,2.60474227,2495.8,2495.7,0.80084]
[1749241443958,1.80393227,2495.8,2495.4,2.00228]
[1749241444158,1.91382227,2495.7,2495.6,0.80084]
[1749241444461,3.25642227,2495.7,2495.6,0.80084]
[1749241444854,3.25642227,2495.7,2495.5,0.80087]
[1749241444855,0.8009,2495.6,2495.5,0.80087]
[1749241445055,3.94623227,2495.6,2495.5,0.80087]
[1749241447165,2.8333,2495.6,2495.5,0.80087]
[1749241447469,3.95447463,2495.6,2495.5,0.80087]
[1749241447659,0.80094,2495.5,2495.4,0.80091]
[1749241447853,3.30951463,2495.5,2495.4,0.80091]
[1749241448463,1.12117463,2495.5,2495.4,0.80091]
[1749241449260,1.92207463,2495.5,2495.4,0.80091]
[1749241449462,3.30947463,2495.5,2495.4,0.80091]
[1749241450370,0.80094,2495.4,2495.3,0.80094]
[1749241450568,1.80327463,2495.4,2495.3,0.80094]
[1749241451465,0.6898,2495.6,2495.5,0.8009]
[1749241451466,1.49068,2495.6,2495.5,0.8009]
[1749241451771,3.29530777,2495.6,2495.5,0.8009]
[1749241452679,4.55550777,2495.6,2495.5,0.8009]
[1749241453377,3.75462777,2495.6,2495.5,0.8009]
[1749241454180,4.55549777,2495.6,2495.5,0.8009]
[1749241459574,3.75462777,2495.6,2495.5,0.8009]
[1749241459773,4.55549777,2495.6,2495.5,0.8009]
[1749241460376,2.56576128,2495.6,2495.5,0.8009]
[1749241460787,3.36663128,2495.6,2495.5,0.8009]
[1749241461985,2.56576128,2495.6,2495.5,0.8009]
[1749241463181,1.19386128,2495.6,2495.5,0.8009]
[1749241463385,1.19386128,2495.6,2495.5,5.8009]
[1749241463988,1.19386128,2495.6,2495.5,0.8009]
[1749241464192,1.99473128,2495.6,2495.5,0.8009]
[1749241464489,1.19386128,2495.6,2495.5,0.8009]
[1749241464691,1.19386128,2495.6,2495.3,3.2078]
[1749241464890,0.80097,2495.4,2495.3,0.80095]
[1749241465089,1.92349777,2495.4,2495.3,0.80095]
[1749241465290,2.58939777,2495.4,2495.3,0.80095]
[1749241466385,0.80097,2495.3,2495.0,3.2078]
[1749241466583,1.78842777,2495.4,2495.1,0.80102]
[1749241466584,1.92355777,2495.2,2495.1,0.80102]
[1749241467090,1.12252777,2495.2,2495.1,0.80102]
[1749241467387,0.80097,2495.3,2495.2,0.801]
[1749241467592,1.92620871,2495.3,2495.2,0.801]
[1749241469188,1.12523871,2495.3,2495.2,0.801]
[1749241469994,1.92620871,2495.3,2495.2,0.801]
[1749241470194,0.80103,2495.2,2495.1,0.80101]
[1749241470390,1.92626871,2495.2,2495.1,0.80101]
[1749241470592,0.80103,2495.1,2495.0,4.00883]
[1749241470799,1.92626871,2495.1,2495.0,4.00883]
[1749241471192,0.80106,2495.0,2494.9,0.80108]
[1749241471493,2.60149871,2495.0,2494.9,0.80108]
[1749241473088,1.80043871,2495.0,2494.7,5.44920974]
[1749241473291,0.80113,2494.8,2494.7,6.25033974]
[1749241473483,1.92636871,2494.8,2494.7,6.25033974]
[1749241474598,1.12523871,2494.8,2494.7,6.25033974]
[1749241474895,1.92636871,2494.8,2494.7,0.80713974]
[1749241475593,1.12523871,2494.8,2494.7,0.80713974]
[1749241476300,0.80112,2494.9,2494.8,0.80113]
[1749241476492,1.92422315,2494.9,2494.8,0.80113]
[1749241478901,1.12310315,2494.9,2494.8,0.80113]
[1749241480999,1.92420315,2494.9,2494.8,0.80113]
[1749241481303,1.12310315,2494.9,2494.8,0.80113]
[1749241481804,1.92420315,2494.9,2494.8,0.80113]
[1749241481997,1.92420315,2494.9,2494.7,0.00600974]
[1749241481998,0.80113,2494.8,2494.7,0.00600974]
[1749241482199,0.80126,2494.4,2494.3,7.9848]
[1749241482503,1.92333304,2494.4,2494.3,3.2078]
[1749241482898,1.92333304,2494.4,2494.3,4.00909]
[1749241483205,0.80126,2494.4,2494.3,4.00909]
[1749241483707,2.15506,2494.4,2494.3,4.00909]
[1749241484506,1.47225,2494.5,2494.4,0.80126]
[1749241484701,2.59632052,2494.5,2494.4,0.80126]
[1749241485507,2.59632052,2494.5,2494.3,4.00907]
[1749241485508,0.80126,2494.4,2494.3,4.00907]
[1749241485805,1.92511239,2494.4,2494.3,4.00907]
[1749241486307,2.83824,2494.5,2494.4,0.80126]
[1749241486502,3.96170798,2494.5,2494.4,0.80126]
[1749241486706,1.12346798,2494.5,2494.4,0.80126]
[1749241486907,0.00600974,2494.6,2494.5,0.80122]
[1749241487300,0.00600974,2494.6,2494.5,2.83372]
[1749241498107,0.00600974,2494.6,2494.5,6.04152]
[1749241500215,0.00600974,2494.6,2494.5,4.64772]
[1749241500619,0.00600974,2494.6,2494.5,9.42272]
[1749241501316,1.14680888,2494.6,2494.1,7.98880974]
[1749241501510,0.80132,2494.3,2494.2,0.8013]
[1749241501710,1.94224333,2494.3,2494.2,0.8013]
[1749241501906,1.14082118,2494.3,2494.2,0.8013]
[1749241503318,0.87261351,2494.4,2494.3,0.80129]
[1749241503613,3.31189013,2494.4,2494.3,0.80129]
[1749241503918,1.21171013,2494.4,2494.3,0.80129]
[1749241505311,0.07133351,2494.4,2494.3,0.80129]
[1749241507320,0.07133351,2494.4,2494.3,2.11729]
[1749241508318,0.07133351,2494.4,2494.3,5.57729]
[1749241516915,0.00600974,2494.6,2494.3,5.57729]
[1749241516916,0.00600974,2494.6,2494.5,0.80122]
[1749241517121,1.14722973,2494.6,2494.5,4.00902]
[1749241517423,0.00600974,2494.6,2494.5,4.00902]
[1749241520621,1.27070974,2494.6,2494.5,4.00902]
[1749241522424,0.00600974,2494.6,2494.5,4.00902]
[1749241524929,5.19011863,2495.5,2495.2,0.80097]
[1749241524930,0.80099,2495.3,2495.2,0.80097]
[1749241525229,14.30250436,2495.3,2495.2,0.80097]
[1749241527031,14.30234055,2495.3,2495.2,0.80097]
[1749241528429,9.30234055,2495.3,2495.2,0.80097]
[1749241528628,3.72935055,2495.3,2495.2,0.80097]
[1749241532127,0.00600974,2495.5,2495.4,0.80093]
[1749241533935,0.00600974,2495.5,2495.4,1.11687493]
[1749241534135,0.00600974,2495.5,2495.4,0.80093]
[1749241538636,0.00600974,2495.5,2495.4,5.57193]
[1749241538935,1.29420974,2495.5,2495.4,5.57193]
[1749241540131,0.00600974,2495.5,2495.4,5.57193]
[1749241541433,0.00600974,2495.5,2495.4,6.22353]
[1749241545136,0.00600974,2495.5,2495.4,1.45253]
[1749241545336,0.00600974,2495.5,2495.4,5.57193]
[1749241546530,0.80690974,2495.5,2495.4,5.57193]
[1749241546736,0.00600974,2495.5,2495.4,5.57193]
[1749241546937,1.29030974,2495.5,2495.4,5.57193]
[1749241549737,1.36164325,2495.5,2495.4,5.57193]
[1749241550940,2.49604685,2495.5,2495.3,0.80095]
[1749241551144,1.7657036,2495.4,2495.3,0.80095]
[1749241551445,3.1492036,2495.4,2495.3,0.80095]
[1749241554146,3.14975727,2495.4,2495.3,0.80095]
[1749241560850,3.95068727,2495.4,2495.3,0.80095]
[1749241561044,3.14975727,2495.4,2495.3,0.80095]
[1749241564460,3.95068727,2495.4,2495.3,0.80095]
[1749241565064,3.14975727,2495.4,2495.1,3.2078]
[1749241565257,3.21925727,2495.3,2495.2,0.80097]
[1749241567055,2.41825727,2495.3,2495.2,0.80097]
[1749241567757,1.2833,2495.3,2495.2,0.80097]
[1749241568264,2.43347888,2495.3,2495.2,0.80097]
[1749241568763,1.2833,2495.3,2495.2,0.80097]
[1749241568962,0.70263351,2495.4,2495.3,0.80097]
[1749241569158,1.8526508,2495.4,2495.3,0.80097]
[1749241569361,0.70263351,2495.4,2495.3,0.80097]
[1749241570160,3.18529448,2495.4,2495.3,0.80097]
[1749241571264,2.03533351,2495.4,2495.3,0.80097]
[1749241571766,2.83626351,2495.4,2495.3,0.80097]
[1749241573864,0.70263351,2495.4,2495.3,0.80097]
[1749241574459,0.07133351,2495.4,2495.3,0.80097]
[1749241574763,0.07133351,2495.4,2495.3,5.56897]
[1749241574960,0.07133351,2495.4,2495.3,11.92657]
[1749241575363,0.07133351,2495.4,2495.3,6.92657]
[1749241576265,0.07133351,2495.4,2495.3,2.15857]
[1749241576464,0.07133351,2495.4,2495.3,6.92657]
[1749241577767,1.22242472,2495.4,2495.3,6.92657]
[1749241578667,1.22242472,2495.4,2495.3,2.15857]
[1749241578871,0.07133351,2495.4,2495.3,6.92657]
[1749241580268,0.07133351,2495.4,2495.3,10.13437]
[1749241583266,0.00600974,2495.5,2495.4,0.80093]
[1749241583561,0.00600974,2495.5,2495.4,2.70713]
[1749241585676,0.00600974,2495.5,2495.4,5.56493]
[1749241586675,0.00600974,2495.5,2495.4,7.53833]
[1749241590075,0.80093,2495.4,2495.3,3.2078]
[1749241590264,4.50539288,2495.4,2495.3,3.2078]
[1749241590468,4.57672639,2495.4,2495.3,4.00877]
[1749241591671,6.76601,2495.9,2495.3,4.00877]
[1749241591672,7.9718,2496.3,2495.3,8.2078]
[1749241591877,0.80073,2496.1,2496.0,0.80071]
[1749241592878,0.80073,2496.1,2495.6,3.2078]
[1749241592879,0.80077,2496.0,2495.9,0.80075]
[1749241593074,3.42597,2496.0,2495.9,0.80075]
[1749241593974,2.6252,2496.0,2495.9,0.80075]
[1749241595785,3.42594,2496.0,2495.9,0.80075]
[1749241602379,2.6252,2496.0,2495.9,0.80075]
[1749241603685,3.79958522,2496.0,2495.9,0.80075]
[1749241604984,2.52518522,2496.0,2495.9,0.80075]
[1749241605387,2.52518522,2496.0,2495.9,4.00855]
[1749241605701,1.17438522,2496.0,2495.9,4.00855]
[1749241605883,0.00600974,2496.3,2496.2,0.80068]
[1749241606186,0.00600974,2496.3,2496.2,4.00848]
[1749241606187,1.1801595,2496.3,2496.2,4.00848]
[1749241606481,0.00600974,2496.3,2496.2,4.00848]
[1749241606686,0.00600974,2496.3,2496.2,4.68738]
[1749241606882,0.00600974,2496.3,2496.2,5.95328]
[1749241607980,1.3554,2496.7,2496.2,5.95328]
[1749241608182,4.00819,2497.1,2497.0,0.80042]
[1749241608381,1.84680657,2497.1,2497.0,0.80042]
[1749241608584,3.10910657,2497.1,2497.0,0.80042]
[1749241608882,3.90949657,2497.1,2497.0,0.80042]
[1749241609396,4.57759657,2497.1,2497.0,0.80042]
[1749241610381,0.80043,2497.0,2496.9,0.80044]
[1749241610586,0.80047,2496.9,2496.8,0.80047]
[1749241611091,1.3909,2496.9,2496.8,0.80047]
[1749241614391,1.3418,2497.1,2497.0,0.80042]
[1749241614590,3.85740275,2497.1,2497.0,0.80042]
[1749241614791,3.85739979,2497.1,2497.0,0.80042]
[1749241614991,2.6866,2497.1,2497.0,0.80042]
[1749241615492,3.48699,2497.1,2497.0,0.80042]
[1749241615692,2.6866,2497.1,2497.0,0.80042]
[1749241615893,3.48699,2497.1,2497.0,0.80042]
[1749241618895,0.80046,2497.0,2496.9,0.80044]
[1749241619197,0.80046,2497.0,2496.8,0.80047]
[1749241619198,0.80045,2496.9,2496.8,0.80047]
[1749241619398,2.17314,2497.0,2496.9,0.80045]
[1749241619992,0.80047,2496.9,2496.8,0.80046]
[1749241620293,2.17317,2496.9,2496.8,0.80046]
[1749241620491,1.3727,2496.9,2496.8,0.80046]
[1749241621294,2.14222,2497.1,2497.0,0.80042]
[1749241621500,2.51249051,2497.1,2497.0,0.80042]
[1749241621689,3.81509051,2497.1,2497.0,0.80042]
[1749241622991,4.61548051,2497.1,2497.0,0.80042]
[1749241629306,0.80045,2497.0,2496.9,0.80043]
[1749241629504,1.97114051,2497.0,2496.9,0.80043]
[1749241629803,3.35284051,2497.0,2496.9,0.80043]
[1749241631100,0.80049,2496.9,2496.8,0.80046]
[1749241631304,0.8006,2496.5,2496.4,0.80058]
[1749241631502,1.3742,2496.8,2496.3,2.00162]
[1749241631808,4.01747622,2496.7,2496.6,0.80052]
[1749241632499,1.84274622,2496.7,2496.6,0.80052]
[1749241632700,0.07133351,2496.9,2496.8,0.80049]
[1749241634109,1.24519988,2496.9,2496.7,4.00829]
[1749241634412,1.17389415,2496.8,2496.7,0.80049]
[1749241634805,1.17389415,2496.8,2496.5,0.6882]
[1749241635005,1.17389415,2496.8,2496.6,0.80052]
[1749241635006,1.97538316,2496.7,2496.6,0.80052]
[1749241635211,0.80061,2496.4,2496.3,7.9658]
[1749241635404,1.97546316,2496.4,2496.3,4.64995]
[1749241635604,0.6674,2496.6,2496.3,4.64995]
[1749241635605,2.12668,2496.6,2496.5,0.80058]
[1749241635814,3.30235112,2496.6,2496.5,0.80058]
[1749241636619,3.30235112,2496.6,2496.2,7.9658]
[1749241636620,2.50177112,2496.6,2496.2,7.9658]
[1749241636821,1.97627112,2496.5,2496.4,0.8006]
[1749241637017,3.27167112,2496.5,2496.4,0.8006]
[1749241637521,1.97627112,2496.5,2496.4,0.8006]
[1749241637720,1.17567112,2496.5,2496.4,0.8006]
[1749241638221,1.97625112,2496.5,2496.4,0.8006]
[1749241638721,1.97549008,2496.5,2496.4,0.8006]
[1749241640324,1.17491008,2496.5,2496.4,0.8006]
[1749241642124,1.97549008,2496.5,2496.4,0.8006]
[1749241644627,1.17491008,2496.5,2496.4,0.8006]
[1749241645424,1.97549008,2496.5,2496.4,0.8006]
[1749241646521,0.80064,2496.4,2496.3,0.80062]
[1749241646724,1.97555008,2496.4,2496.3,0.80062]
[1749241647617,1.97552008,2496.4,2496.3,0.80062]
[1749241647820,1.17491008,2496.4,2496.3,0.80062]
[1749241648020,1.97552008,2496.4,2496.3,0.80062]
[1749241649129,1.97552008,2496.4,2495.9,7.9618]
[1749241649130,0.80074,2496.0,2495.9,7.9618]
[1749241649332,0.80073,2496.1,2496.0,0.80071]
[1749241649629,0.6866,2496.2,2496.1,0.80071]
[1749241649827,0.80064,2496.4,2496.3,0.80062]
[1749241650029,1.97441935,2496.4,2496.3,0.80062]
[1749241653934,0.8007,2496.2,2496.1,0.80066]
[1749241654233,1.97447935,2496.2,2496.1,0.80066]
[1749241654626,1.17377935,2496.2,2496.1,0.80066]
[1749241655037,1.97445935,2496.2,2496.1,0.80066]
[1749241657137,1.17377935,2496.2,2496.1,0.80066]
[1749241658934,1.97445935,2496.2,2496.1,0.80066]
[1749241659340,1.97445935,2496.2,2496.0,3.2078]
[1749241659341,0.80071,2496.1,2496.0,4.00852]
[1749241659640,2.61378935,2496.1,2496.0,4.00852]
[1749241661437,3.29058935,2496.1,2496.0,4.00852]
[1749241662340,3.29058935,2496.1,2496.0,0.80072]
[1749241666342,0.80077,2496.0,2495.9,0.80076]
[1749241666541,0.80077,2495.9,2495.8,0.00600974]
[1749241666738,3.26454935,2495.9,2495.8,0.00600974]
[1749241673336,0.80097,2495.4,2495.2,0.6664]
[1749241673648,0.80097,2495.4,2495.1,11.26566]
[1749241673649,0.80097,2495.4,2495.3,0.80093]
[1749241673846,1.97281743,2495.4,2495.3,0.80093]
[1749241675046,1.17184743,2495.4,2495.3,0.80093]
[1749241675947,1.48013,2495.5,2495.4,0.80093]
[1749241676249,2.65242256,2495.5,2495.4,0.80093]
[1749241676547,1.85149256,2495.5,2495.4,0.80093]
[1749241676750,0.07133351,2496.1,2495.5,0.8009]
[1749241676945,0.80078,2496.0,2495.9,0.80076]
[1749241677250,0.80082,2495.8,2495.7,0.8008]
[1749241680251,0.80087,2495.7,2495.6,0.80084]
[1749241681550,2.00786974,2496.0,2495.5,5.3953]
[1749241681756,0.80083,2495.8,2495.7,0.80081]
[1749241683758,0.80087,2495.7,2495.6,0.80084]
[1749241685456,0.80087,2495.6,2495.5,1.44419]
[1749241687061,0.07133351,2495.7,2495.6,0.80087]
[1749241687259,0.87217351,2495.7,2495.6,0.80087]
[1749241688162,0.07133351,2495.7,2495.6,0.80087]
[1749241688758,0.07133351,2495.7,2495.6,2.10517]
[1749241688964,1.23845293,2495.7,2495.6,2.10517]
[1749241690364,1.23845293,2495.7,2495.6,0.80087]
[1749241690960,2.03929293,2495.7,2495.6,0.80087]
[1749241692063,0.8009,2495.5,2495.4,4.00871]
[1749241692259,1.16711942,2495.5,2495.1,3.21380974]
[1749241692456,0.801,2495.2,2495.1,0.80703974]
[1749241692974,1.96811942,2495.2,2495.1,0.80703974]
[1749241693265,1.16711942,2495.2,2495.1,0.80703974]
[1749241695064,0.80098,2495.3,2495.2,0.801]
[1749241695263,1.96915108,2495.3,2495.2,0.801]
[1749241695970,3.30315108,2495.3,2495.2,0.801]
[1749241697467,0.801,2495.2,2495.1,0.80700974]
[1749241697670,1.96917108,2495.2,2495.1,0.80700974]
[1749241697870,3.24887108,2495.2,2495.1,0.80700974]
[1749241698361,2.44787108,2495.2,2495.1,0.80700974]
[1749241698762,1.16817108,2495.2,2495.1,0.80700974]
[1749241698963,0.80097,2495.3,2495.2,0.801]
[1749241699165,2.44645697,2495.3,2495.2,0.801]
[1749241699564,1.16675697,2495.3,2495.2,0.801]
[1749241699769,1.16675697,2495.3,2495.2,9.4252]
[1749241700265,0.6839,2495.6,2495.2,9.4252]
[1749241700469,0.6839,2495.6,2495.5,0.8009]
[1749241700676,1.85036938,2495.6,2495.5,0.8009]
[1749241700869,1.85036938,2495.6,2495.4,0.80091]
[1749241701172,1.16646938,2495.5,2495.4,0.80091]
[1749241702769,1.96736938,2495.5,2495.4,0.80091]
[1749241704774,0.80096,2495.4,2495.3,0.80093]
[1749241704971,1.96742938,2495.4,2495.3,0.80093]
[1749241705566,0.80097,2495.3,2495.2,9.42518]
[1749241705870,2.64743938,2495.3,2495.2,4.67218]
[1749241706068,2.71877289,2495.3,2495.2,4.67218]
[1749241709173,2.71877289,2495.3,2495.2,0.6634]
[1749241709378,0.801,2495.2,2495.1,4.75900974]
[1749241709571,1.96746938,2495.2,2495.1,4.75900974]
[1749241709769,3.95846938,2495.2,2495.1,4.75900974]
[1749241709971,3.95846938,2495.2,2495.1,0.00600974]
[1749241711881,2.792,2495.2,2495.1,0.00600974]
[1749241712081,3.9589653,2495.2,2495.1,0.00600974]
[1749241713081,3.9589653,2495.2,2495.1,0.80703974]
[1749241714380,1.1669653,2495.2,2495.1,0.80703974]
[1749241714785,0.80092,2495.5,2495.4,0.80093]
[1749241715086,1.96667988,2495.5,2495.4,0.80093]
[1749241716187,1.16575988,2495.5,2495.4,0.80093]
[1749241716487,1.16575988,2495.5,2495.4,2.76343]
[1749241717490,0.80084,2495.7,2495.6,0.80087]
[1749241717700,1.96667187,2495.7,2495.6,0.80087]
[1749241719086,0.8009,2495.6,2495.5,0.80088]
[1749241719285,1.96673187,2495.6,2495.5,0.80088]
[1749241723097,1.16583187,2495.6,2495.5,0.80088]
[1749241723296,1.16583187,2495.6,2495.4,0.6382]
[1749241723297,0.80087,2495.7,2495.6,0.80084]
[1749241723596,1.96883172,2495.7,2495.6,0.80084]
[1749241728293,0.80093,2495.4,2495.3,3.2078]
[1749241728596,0.80093,2495.4,2495.3,0.80095]
[1749241728995,1.96889172,2495.4,2495.3,0.80095]
[1749241729403,1.16796172,2495.4,2495.3,0.80095]
[1749241732002,1.96889172,2495.4,2495.3,0.80095]
[1749241732197,1.16796172,2495.4,2495.3,0.80095]
[1749241743206,1.96889172,2495.4,2495.3,0.80095]
[1749241743609,3.34809172,2495.4,2495.3,0.80095]
[1749241744614,2.54716172,2495.4,2495.3,0.80095]
[1749241745518,3.34809172,2495.4,2495.3,0.80095]
[1749241745716,3.41942523,2495.4,2495.3,0.80095]
[1749241746113,2.61849523,2495.4,2495.3,0.80095]
[1749241747115,1.23929523,2495.4,2495.3,0.80095]
[1749241751417,2.04022523,2495.4,2495.3,0.80095]
[1749241751619,3.30482523,2495.4,2495.3,0.80095]
[1749241752116,2.50389523,2495.4,2495.3,0.80095]
[1749241752317,3.30482523,2495.4,2495.3,0.80095]
[1749241752520,2.50389523,2495.4,2495.3,0.80095]
[1749241753722,3.30483523,2495.4,2495.3,0.80095]
[1749241753920,2.50389523,2495.4,2495.3,0.80095]
[1749241754920,3.30482523,2495.4,2495.3,0.80095]
[1749241755224,2.50389523,2495.4,2495.3,0.80095]
[1749241756024,0.801,2495.2,2495.1,0.80703974]
[1749241756419,1.96896172,2495.2,2495.1,0.80703974]
[1749241756619,3.33066172,2495.2,2495.1,0.80703974]
[1749241757223,2.52966172,2495.2,2495.1,0.80703974]
[1749241760327,3.33066172,2495.2,2495.1,0.80703974]
[1749241760526,2.52966172,2495.2,2495.1,0.80703974]
[1749241763028,1.16796172,2495.2,2495.1,0.80703974]
[1749241763227,0.07133351,2495.4,2495.3,0.80097]
[1749241770241,0.87226351,2495.4,2495.3,0.80097]
[1749241771040,0.07133351,2495.4,2495.3,0.80097]
[1749241772945,0.87226351,2495.4,2495.3,0.80097]
[1749241773148,0.07133351,2495.4,2495.3,0.80097]
[1749241774854,0.07133351,2495.4,2495.2,8.75378]
[1749241775044,0.6306,2495.3,2495.2,0.80098]
[1749241775240,0.801,2495.2,2495.1,0.80700974]
[1749241775439,1.95926683,2495.2,2495.1,0.00600974]
[1749241775652,3.34396683,2495.2,2495.1,0.80703974]
[1749241777347,2.54296683,2495.2,2495.1,0.80703974]
[1749241778149,3.34396683,2495.2,2495.1,0.80703974]
[1749241783257,2.54296683,2495.2,2495.1,0.80703974]
[1749241784258,2.5417837,2495.2,2495.1,0.80703974]
[1749241784451,3.3427837,2495.2,2495.1,0.80703974]
[1749241787264,2.5417837,2495.2,2495.1,0.80703974]
[1749241787464,1.1570837,2495.2,2495.1,0.80703974]
[1749241787663,1.9580837,2495.2,2495.1,0.80703974]
[1749241789264,1.1570837,2495.2,2495.1,0.80703974]
[1749241790161,0.6712,2495.5,2495.4,0.80093]
[1749241790366,1.8280526,2495.5,2495.4,4.00873]
[1749241792662,1.1568526,2495.5,2495.4,4.00873]
[1749241797370,1.9577526,2495.5,2495.4,4.00873]
[1749241797772,1.1568526,2495.5,2495.4,4.00873]
[1749241798070,0.6316,2495.6,2495.5,0.8009]
[1749241798071,1.43249,2495.6,2495.5,0.8009]
[1749241798272,2.58967481,2495.6,2495.5,0.8009]
[1749241800174,2.58967481,2495.6,2495.5,1.4372]
[1749241800375,2.58967481,2495.6,2495.5,0.8009]
[1749241802679,0.80097,2495.3,2495.2,4.741]
[1749241802973,0.80099,2495.3,2495.2,0.80097]
[1749241803176,1.95841253,2495.3,2495.2,0.80097]
[1749241803376,2.62431253,2495.3,2495.2,0.80097]
[1749241803972,0.801,2495.2,2495.1,5.54401974]
[1749241804279,2.52312253,2495.2,2495.1,5.54401974]
[1749241804479,1.15742253,2495.2,2495.1,5.54401974]
[1749241805580,1.95842253,2495.2,2495.1,5.54401974]
[1749241806676,1.15742253,2495.2,2495.1,5.54401974]
[1749241807181,1.95842253,2495.2,2495.1,5.54401974]
[1749241808481,1.15742253,2495.2,2495.1,5.54401974]
[1749241815697,1.46687,2495.3,2495.2,0.801]
[1749241815896,2.81147,2495.3,2495.2,0.801]
[1749241817494,2.0105,2495.3,2495.2,0.801]
[1749241817694,0.07133351,2495.6,2495.5,0.8009]
[1749241818093,0.07133351,2495.6,2495.5,4.0087]
[1749241818798,1.25801366,2495.6,2495.5,8.7457]
[1749241819792,1.18668015,2495.6,2495.5,8.7457]
[1749241820601,0.80082,2495.8,2495.7,0.80081]
[1749241821002,1.98761109,2495.8,2495.7,0.80081]
[1749241821201,2.64811109,2495.8,2495.7,0.80081]
[1749241822304,2.64758158,2495.8,2495.7,0.80081]
[1749241823399,1.84676158,2495.8,2495.7,0.80081]
[1749241823800,2.64756158,2495.8,2495.7,0.80081]
[1749241824003,1.84676158,2495.8,2495.7,0.80081]